[Event "Redbull chessmasters 2019"]
[Site "Istambul"]
[Date "2019.11.24"]
[Round "4.4"]
[White "Yanik, Sural Emine"]
[Black "Yildiz Kadioglu, Betul Cemre"]
[Result "0-1"]
[ECO "D02"]
[WhiteElo "1834"]
[BlackElo "2338"]
[Annotator "NA"]
[PlyCount "68"]
[EventDate "2019.11.23"]
[EventType "k.o."]
[EventCountry "TUR"]
[SourceTitle "playchess.com"]
[Source "ChessBase"]
[SourceQuality "1"]
[TimeControl "600+5"]

1. d4 {[%emt 0:00:00]} d5 {[%emt 0:00:00]} 2. Nf3 {[%emt 0:00:00]} c5 {[%emt 0:00:03]} 3. c3 {[%emt 0:00:00]} e6 {[%emt 0:00:09]} 4. Bg5 {[%emt 0:00:34]} Qb6 {[%emt 0:00:17]} 5. Qb3 {[%emt 0:00:27]} Nc6 {[%emt 0:00:52]} 6. e3 {[%emt 0:00:01]} Bd6 {[%emt 0:00:35]} 7. Nbd2 {[%emt 0:00:30]} Nge7 {[%emt 0:00:33]} 8. Be2 {[%emt 0:00:53]} Nf5 {[%emt 0:00:24]} 9. O-O {[%emt 0:00:24]} h6 {[%emt 0:00:04]} 10. dxc5 {[%emt 0:00:38]} Qxc5 {[%emt 0:00:52]} 11. Bf4 {[%emt 0:00:37]} Bxf4 {[%emt 0:00:54]} 12. exf4 {[%emt 0:00:00]} O-O {[%emt 0:00:15]} 13. Bd3 {[%emt 0:00:37]} Ne3 {[%emt 0:01:19]} 14. Rfe1 {[%emt 0:00:39]} Ng4 {[%emt 0:00:01]} 15. Rf1 {[%emt 0:01:09]} b6 {[%emt 0:00:02]} 16. c4 {[%emt 0:00:06]} Nb4 {[%emt 0:01:28]} 17. cxd5 {[%emt 0:01:15]} Nxd5 {[%emt 0:00:08]} 18. Rac1 {[%emt 0:00:21]} Qe7 {[%emt 0:00:02]} 19. Be4 {[%emt 0:00:23]} Bb7 {[%emt 0:00:16]} 20. g3 {[%emt 0:00:06]} Rfd8 {[%emt 0:00:20]} 21. Bb1 {[%emt 0:00:20]} Nb4 {[%emt 0:00:29]} 22. a3 {[%emt 0:00:18]} Na6 {[%emt 0:00:05]} 23. Qc2 {[%emt 0:00:05]} Nf6 {[%emt 0:00:06]} 24. b4 {[%emt 0:00:12]} Rac8 {[%emt 0:00:11]} 25. Qb3 {[%emt 0:00:01]} Nc7 {[%emt 0:00:25]} 26. Rfe1 {[%emt 0:00:11]} Qd7 {[%emt 0:00:28]} 27. Rcd1 {[%emt 0:00:09]} Bd5 {[%emt 0:00:17]} 28. Qd3 {[%emt 0:00:12]} Qb5 {[%emt 0:00:11]} 29. Qxb5 {[%emt 0:00:12]} Nxb5 {[%emt 0:00:02]} 30. Ne5 {[%emt 0:01:12]} Nc3 {[%emt 0:00:03]} 31. f5 {[%emt 0:00:37]} Nxd1 {[%emt 0:00:10]} 32. Rxd1 {[%emt 0:00:05]} exf5 {[%emt 0:00:03]} 33. Bxf5 {[%emt 0:00:19]} Be6 {[%emt 0:00:05]} 34. Bxe6 {[%emt 0:00:05]} fxe6 {[%emt 0:00:00]} 0-1

[Event "Redbull chessmasters 2019"]
[Site "Istambul"]
[Date "2019.11.24"]
[Round "4.5"]
[White "Kilic, Efe Mert"]
[Black "Inan, Canberk"]
[Result "1-0"]
[ECO "B40"]
[WhiteElo "2247"]
[BlackElo "1941"]
[Annotator "NA"]
[PlyCount "97"]
[EventDate "2019.11.23"]
[EventType "k.o."]
[EventCountry "TUR"]
[SourceTitle "playchess.com"]
[Source "ChessBase"]
[SourceQuality "1"]
[TimeControl "600+5"]

1. e4 {[%emt 0:00:00]} c5 {[%emt 0:00:00]} 2. Nf3 {[%emt 0:00:00]} e6 {[%emt 0:00:05]} 3. b3 {[%emt 0:00:04]} Nc6 {[%emt 0:00:05]} 4. Bb2 {[%emt 0:00:05]} d5 {[%emt 0:00:00]} 5. Bb5 {[%emt 0:00:00]} a6 {[%emt 0:00:27]} 6. Bxc6+ {[%emt 0:00:16]} bxc6 {[%emt 0:00:01]} 7. Nc3 {[%emt 0:00:29]} Nf6 {[%emt 0:00:26]} 8. O-O {[%emt 0:00:03]} d4 {[%emt 0:00:16]} 9. Na4 {[%emt 0:00:03]} Nxe4 {[%emt 0:00:27]} 10. Re1 {[%emt 0:00:00]} Nf6 {[%emt 0:00:04]} 11. c3 {[%emt 0:00:01]} d3 {[%emt 0:01:28]} 12. Ne5 {[%emt 0:00:05]} Bd6 {[%emt 0:00:11]} 13. Qf3 {[%emt 0:00:03]} Qc7 {[%emt 0:00:50]} 14. Nxd3 {[%emt 0:00:46]} Bxh2+ {[%emt 0:00:20]} 15. Kh1 {[%emt 0:00:05]} Bd6 {[%emt 0:00:08]} 16. Naxc5 {[%emt 0:00:38]} Bxc5 {[%emt 0:01:24]} 17. Nxc5 {[%emt 0:00:01]} h5 {[%emt 0:00:15]} 18. Kg1 {[%emt 0:04:36]} Ng4 {[%emt 0:00:35]} 19. g3 {[%emt 0:00:53]} Rh6 {[%emt 0:00:31]} 20. c4 {[%emt 0:00:11]} Rg6 {[%emt 0:00:16]} 21. Re4 {[%emt 0:00:48]} f5 {[%emt 0:01:41]} 22. Qxf5 {[%emt 0:00:09]} Qf7 {[%emt 0:00:38]} 23. Qxf7+ {[%emt 0:00:11]} Kxf7 {[%emt 0:00:01]} 24. Rae1 {[%emt 0:00:42]} h4 {[%emt 0:00:06]} 25. Rf4+ {[%emt 0:00:48]} Kg8 {[%emt 0:00:18]} 26. Ree4 {[%emt 0:00:37]} e5 {[%emt 0:00:55]} 27. Bxe5 {[%emt 0:00:05]} h3 {[%emt 0:00:05]} 28. Bd4 {[%emt 0:00:05]} Nf6 {[%emt 0:00:05]} 29. Bxf6 {[%emt 0:00:05]} gxf6 {[%emt 0:00:05]} 30. Re8+ {[%emt 0:00:05]} Kf7 {[%emt 0:00:05]} 31. Rfe4 {[%emt 0:00:05]} Rg5 {[%emt 0:00:05]} 32. R4e7+ {[%emt 0:00:05]} Kg6 {[%emt 0:00:05]} 33. Ne4 {[%emt 0:00:05]} Ra5 {[%emt 0:00:37]} 34. Rc7 {[%emt 0:00:18]} Bf5 {[%emt 0:00:05]} 35. Rxa8 {[%emt 0:00:05]} Bxe4 {[%emt 0:00:05]} 36. Rg8+ {[%emt 0:00:05]} Kf5 {[%emt 0:00:02]} 37. a4 {[%emt 0:00:13]} Re5 {[%emt 0:00:05]} 38. d4 {[%emt 0:00:05]} Re6 {[%emt 0:00:00]} 39. Kh2 {[%emt 0:00:12]} Bg2 {[%emt 0:00:01]} 40. Rh8 {[%emt 0:00:04]} Re1 {[%emt 0:00:03]} 41. Rxh3 {[%emt 0:00:05]} Bf3 {[%emt 0:00:07]} 42. g4+ {[%emt 0:00:05]} Kf4 {[%emt 0:00:08]} 43. Rxf3+ {[%emt 0:00:03]} Kxf3 {[%emt 0:00:00]} 44. Rxc6 {[%emt 0:00:01]} Re4 {[%emt 0:00:19]} 45. Rxf6+ {[%emt 0:00:02]} Ke2 {[%emt 0:00:00]} 46. Kg3 {[%emt 0:00:11]} Rxd4 {[%emt 0:00:03]} 47. g5 {[%emt 0:00:05]} Rd3+ {[%emt 0:00:00]} 48. f3 {[%emt 0:00:02]} Rd1 {[%emt 0:00:05]} 49. Re6+ {[%emt 0:00:01]} 1-0

[Event "Redbull chessmasters 2019"]
[Site "Istambul"]
[Date "2019.11.24"]
[Round "4.6"]
[White "Ozdemir, Serhan Berat"]
[Black "Tarlabasi, Emirhan"]
[Result "0-1"]
[ECO "C06"]
[WhiteElo "2096"]
[BlackElo "2316"]
[Annotator "NA"]
[PlyCount "62"]
[EventDate "2019.11.23"]
[EventType "k.o."]
[EventCountry "TUR"]
[SourceTitle "playchess.com"]
[Source "ChessBase"]
[SourceQuality "1"]
[TimeControl "600+5"]

1. e4 {[%emt 0:00:00]} e6 {[%emt 0:00:00]} 2. d4 {[%emt 0:00:05]} d5 {[%emt 0:00:05]} 3. Nd2 {[%emt 0:00:00]} Be7 {[%emt 0:00:00]} 4. Ngf3 {[%emt 0:00:00]} Nf6 {[%emt 0:00:03]} 5. e5 {[%emt 0:00:03]} Nfd7 {[%emt 0:00:05]} 6. Bd3 {[%emt 0:00:05]} c5 {[%emt 0:00:05]} 7. c3 {[%emt 0:00:05]} Nc6 {[%emt 0:00:05]} 8. O-O {[%emt 0:00:00]} a6 {[%emt 0:00:01]} 9. Re1 {[%emt 0:01:27]} b5 {[%emt 0:01:02]} 10. Nf1 {[%emt 0:00:07]} cxd4 {[%emt 0:00:27]} 11. cxd4 {[%emt 0:00:02]} Qb6 {[%emt 0:00:18]} 12. Be3 {[%emt 0:00:35]} a5 {[%emt 0:00:15]} 13. Rc1 {[%emt 0:00:17]} Ba6 {[%emt 0:00:00]} 14. Ng3 {[%emt 0:00:00]} g6 {[%emt 0:00:28]} 15. h4 {[%emt 0:00:40]} h6 {[%emt 0:00:58]} 16. Ne2 {[%emt 0:00:50]} O-O-O {[%emt 0:00:48]} 17. a4 {[%emt 0:01:00]} b4 {[%emt 0:00:44]} 18. Nf4 {[%emt 0:00:59]} Kb7 {[%emt 0:00:15]} 19. Bxa6+ {[%emt 0:00:47]} Qxa6 {[%emt 0:00:10]} 20. Nd3 {[%emt 0:00:11]} Rdg8 {[%emt 0:00:37]} 21. Qe2 {[%emt 0:00:20]} g5 {[%emt 0:01:01]} 22. h5 {[%emt 0:00:04]} Rc8 {[%emt 0:00:27]} 23. Nd2 {[%emt 0:00:01]} Rc7 {[%emt 0:01:15]} 24. Nb3 {[%emt 0:00:40]} Rhc8 {[%emt 0:00:04]} 25. Ndc5+ {[%emt 0:00:51]} Nxc5 {[%emt 0:00:30]} 26. Nxc5+ {[%emt 0:00:04]} Bxc5 {[%emt 0:00:02]} 27. Rxc5 {[%emt 0:00:48]} Qxe2 {[%emt 0:00:05]} 28. Rxe2 {[%emt 0:00:00]} Rf8 {[%emt 0:01:59]} 29. Rec2 {[%emt 0:00:45]} f5 {[%emt 0:00:18]} 30. f4 {[%emt 0:01:09]} g4 {[%emt 0:00:07]} 31. Bf2 {[%emt 0:00:17]} Rff7 {[%emt 0:00:13]} 0-1

[Event "Redbull chessmasters 2019"]
[Site "Istambul"]
[Date "2019.11.24"]
[Round "4.7"]
[White "Gunduz, Umut Erdem"]
[Black "Ozsakallioglu, Okan"]
[Result "0-1"]
[ECO "B45"]
[WhiteElo "2172"]
[BlackElo "2072"]
[Annotator "NA"]
[PlyCount "60"]
[EventDate "2019.11.23"]
[EventType "k.o."]
[EventCountry "TUR"]
[SourceTitle "playchess.com"]
[Source "ChessBase"]
[SourceQuality "1"]
[TimeControl "600+5"]

1. e4 {[%emt 0:00:00]} c5 {[%emt 0:00:00]} 2. Nf3 {[%emt 0:00:05]} e6 {[%emt 0:00:00]} 3. d4 {[%emt 0:00:00]} cxd4 {[%emt 0:00:02]} 4. Nxd4 {[%emt 0:00:00]} Nf6 {[%emt 0:00:05]} 5. Nc3 {[%emt 0:00:04]} Nc6 {[%emt 0:00:05]} 6. Ndb5 {[%emt 0:00:00]} Bb4 {[%emt 0:00:44]} 7. a3 {[%emt 0:00:00]} Bxc3+ {[%emt 0:00:05]} 8. Nxc3 {[%emt 0:00:00]} d5 {[%emt 0:00:05]} 9. exd5 {[%emt 0:00:01]} exd5 {[%emt 0:00:05]} 10. Bd3 {[%emt 0:00:05]} O-O {[%emt 0:00:05]} 11. O-O {[%emt 0:00:05]} d4 {[%emt 0:00:05]} 12. Ne2 {[%emt 0:00:05]} Bg4 {[%emt 0:00:05]} 13. f3 {[%emt 0:00:05]} Bh5 {[%emt 0:00:05]} 14. Nf4 {[%emt 0:00:05]} Bg6 {[%emt 0:00:05]} 15. Nxg6 {[%emt 0:00:05]} hxg6 {[%emt 0:00:05]} 16. f4 {[%emt 0:00:05]} Re8 {[%emt 0:00:05]} 17. Qf3 {[%emt 0:00:05]} Nd7 {[%emt 0:01:00]} 18. b4 {[%emt 0:00:00]} Qb6 {[%emt 0:00:44]} 19. Bd2 {[%emt 0:00:19]} a5 {[%emt 0:00:15]} 20. Qh3 {[%emt 0:00:00]} Nf6 {[%emt 0:00:40]} 21. Rae1 {[%emt 0:02:26]} axb4 {[%emt 0:00:17]} 22. axb4 {[%emt 0:00:01]} Rxe1 {[%emt 0:01:05]} 23. Rxe1 {[%emt 0:00:04]} Nxb4 {[%emt 0:00:16]} 24. Rb1 {[%emt 0:00:32]} Nxd3 {[%emt 0:00:01]} 25. Rf1 {[%emt 0:02:01]} Nc5 {[%emt 0:00:08]} 26. f5 {[%emt 0:00:05]} gxf5 {[%emt 0:00:19]} 27. Qxf5 {[%emt 0:00:04]} Nce4 {[%emt 0:00:03]} 28. Bc1 {[%emt 0:02:05]} d3+ {[%emt 0:00:07]} 29. Kh1 {[%emt 0:00:05]} d2 {[%emt 0:00:05]} 30. Ba3 {[%emt 0:00:00]} Qe6 {[%emt 0:00:03]} 0-1

[Event "Redbull chessmasters 2019"]
[Site "Istambul"]
[Date "2019.11.24"]
[Round "4.8"]
[White "Duru, Ipek"]
[Black "Kalayci, Nino"]
[Result "1/2-1/2"]
[ECO "C01"]
[WhiteElo "1566"]
[BlackElo "1852"]
[Annotator "NA"]
[PlyCount "61"]
[EventDate "2019.11.23"]
[EventType "k.o."]
[EventCountry "TUR"]
[SourceTitle "playchess.com"]
[Source "ChessBase"]
[SourceQuality "1"]
[TimeControl "600+5"]

1. e4 {[%emt 0:00:00]} e6 {[%emt 0:00:00]} 2. d4 {[%emt 0:00:04]} d5 {[%emt 0:00:05]} 3. exd5 {[%emt 0:00:05]} exd5 {[%emt 0:00:05]} 4. Nf3 {[%emt 0:00:05]} Nf6 {[%emt 0:00:05]} 5. Bd3 {[%emt 0:00:05]} Bd6 {[%emt 0:00:05]} 6. Nc3 {[%emt 0:00:00]} O-O {[%emt 0:00:00]} 7. O-O {[%emt 0:00:00]} c6 {[%emt 0:00:00]} 8. Bg5 {[%emt 0:00:00]} Bg4 {[%emt 0:00:09]} 9. h3 {[%emt 0:00:00]} Bh5 {[%emt 0:00:12]} 10. Re1 {[%emt 0:00:00]} Nbd7 {[%emt 0:00:04]} 11. g4 {[%emt 0:00:05]} Bg6 {[%emt 0:00:05]} 12. Ne5 {[%emt 0:00:00]} Qb6 {[%emt 0:02:11]} 13. Bxg6 {[%emt 0:01:11]} hxg6 {[%emt 0:00:02]} 14. Na4 {[%emt 0:00:11]} Qa5 {[%emt 0:00:34]} 15. c3 {[%emt 0:00:22]} Bxe5 {[%emt 0:02:44]} 16. dxe5 {[%emt 0:00:32]} Ne4 {[%emt 0:00:05]} 17. Be7 {[%emt 0:02:14]} Rfe8 {[%emt 0:00:01]} 18. Bb4 {[%emt 0:00:15]} Qd8 {[%emt 0:00:28]} 19. c4 {[%emt 0:02:21]} Qh4 {[%emt 0:02:01]} 20. Rxe4 {[%emt 0:01:37]} dxe4 {[%emt 0:00:05]} 21. Qxd7 {[%emt 0:00:05]} Rad8 {[%emt 0:00:05]} 22. Qc7 {[%emt 0:00:05]} Qxh3 {[%emt 0:00:05]} 23. e6 {[%emt 0:00:00]} Qxg4+ {[%emt 0:00:25]} 24. Qg3 {[%emt 0:00:01]} Rd1+ {[%emt 0:00:12]} 25. Rxd1 {[%emt 0:00:18]} Qxd1+ {[%emt 0:00:05]} 26. Kg2 {[%emt 0:00:00]} Rxe6 {[%emt 0:01:41]} 27. Qb8+ {[%emt 0:00:32]} Kh7 {[%emt 0:00:05]} 28. Qh2+ {[%emt 0:00:11]} Kg8 {[%emt 0:00:20]} 29. Qb8+ {[%emt 0:00:05]} Kh7 {[%emt 0:00:03]} 30. Qh2+ {[%emt 0:00:11]} Kg8 {[%emt 0:00:05]} 31. Qb8+ {[%emt 0:00:00]} 1/2-1/2

[Event "Redbull chessmasters 2019"]
[Site "Istambul"]
[Date "2019.11.24"]
[Round "4.9"]
[White "Kilic, Ihsan"]
[Black "Ererdem, Gani Eren"]
[Result "1-0"]
[ECO "D02"]
[WhiteElo "1941"]
[BlackElo "2105"]
[Annotator "NA"]
[PlyCount "111"]
[EventDate "2019.11.23"]
[EventType "k.o."]
[EventCountry "TUR"]
[SourceTitle "playchess.com"]
[Source "ChessBase"]
[SourceQuality "1"]
[TimeControl "600+5"]

1. d4 {[%emt 0:00:00]} Nf6 {[%emt 0:00:00]} 2. Nf3 {[%emt 0:00:03]} e6 {[%emt 0:00:01]} 3. g3 {[%emt 0:00:12]} d5 {[%emt 0:00:05]} 4. Bg2 {[%emt 0:00:05]} Be7 {[%emt 0:00:06]} 5. b3 {[%emt 0:00:00]} O-O {[%emt 0:00:05]} 6. Bb2 {[%emt 0:00:00]} b6 {[%emt 0:00:51]} 7. O-O {[%emt 0:00:00]} Bb7 {[%emt 0:00:01]} 8. Ne5 {[%emt 0:00:04]} c5 {[%emt 0:00:20]} 9. e3 {[%emt 0:00:18]} Nc6 {[%emt 0:00:11]} 10. Nd2 {[%emt 0:00:20]} Qc7 {[%emt 0:02:51]} 11. f4 {[%emt 0:00:30]} Nd7 {[%emt 0:01:50]} 12. c4 {[%emt 0:00:45]} dxc4 {[%emt 0:00:59]} 13. Ndxc4 {[%emt 0:00:40]} Rad8 {[%emt 0:00:15]} 14. Qe2 {[%emt 0:01:24]} Ndxe5 {[%emt 0:01:32]} 15. dxe5 {[%emt 0:01:18]} b5 {[%emt 0:00:02]} 16. Nd2 {[%emt 0:01:53]} Nb4 {[%emt 0:00:01]} 17. Ne4 {[%emt 0:00:45]} Nd3 {[%emt 0:00:45]} 18. Rfd1 {[%emt 0:00:28]} Nxb2 {[%emt 0:00:20]} 19. Qxb2 {[%emt 0:00:00]} Rxd1+ {[%emt 0:00:26]} 20. Rxd1 {[%emt 0:00:03]} Rd8 {[%emt 0:00:20]} 21. Rxd8+ {[%emt 0:00:10]} Qxd8 {[%emt 0:00:01]} 22. Qc2 {[%emt 0:00:22]} Qa5 {[%emt 0:00:31]} 23. Kf2 {[%emt 0:00:22]} Qc7 {[%emt 0:00:04]} 24. h4 {[%emt 0:00:23]} h5 {[%emt 0:00:13]} 25. Bf3 {[%emt 0:00:17]} g6 {[%emt 0:00:00]} 26. Nd2 {[%emt 0:00:28]} Ba6 {[%emt 0:00:11]} 27. Be2 {[%emt 0:00:18]} Qa5 {[%emt 0:00:06]} 28. Ne4 {[%emt 0:00:09]} Qb4 {[%emt 0:00:04]} 29. Nd6 {[%emt 0:00:32]} Kg7 {[%emt 0:00:05]} 30. a4 {[%emt 0:00:12]} bxa4 {[%emt 0:00:08]} 31. Bxa6 {[%emt 0:00:05]} axb3 {[%emt 0:00:05]} 32. Qb2 {[%emt 0:00:05]} Qb6 {[%emt 0:00:05]} 33. Bc4 {[%emt 0:00:16]} Kg8 {[%emt 0:00:05]} 34. Qxb3 {[%emt 0:00:05]} Qa5 {[%emt 0:00:05]} 35. Qa2 {[%emt 0:00:10]} Qb4 {[%emt 0:00:04]} 36. Ne4 {[%emt 0:00:05]} a5 {[%emt 0:00:05]} 37. Nd2 {[%emt 0:00:03]} a4 {[%emt 0:00:09]} 38. Ne4 {[%emt 0:00:05]} Kg7 {[%emt 0:00:00]} 39. Nd6 {[%emt 0:00:04]} a3 {[%emt 0:00:04]} 40. Nb5 {[%emt 0:00:00]} f6 {[%emt 0:00:11]} 41. Nxa3 {[%emt 0:00:05]} fxe5 {[%emt 0:00:05]} 42. fxe5 {[%emt 0:00:00]} Qc3 {[%emt 0:00:01]} 43. Bxe6 {[%emt 0:00:10]} Qxe5 {[%emt 0:00:02]} 44. Bd5 {[%emt 0:00:10]} Bd6 {[%emt 0:00:02]} 45. Ke2 {[%emt 0:00:07]} Qxg3 {[%emt 0:00:05]} 46. Qc4 {[%emt 0:00:04]} Qh2+ {[%emt 0:00:11]} 47. Kd3 {[%emt 0:00:07]} Kh7 {[%emt 0:00:01]} 48. Nb5 {[%emt 0:00:01]} Be5 {[%emt 0:00:04]} 49. Be4 {[%emt 0:00:03]} Qg1 {[%emt 0:00:06]} 50. Qf7+ {[%emt 0:00:05]} Bg7 {[%emt 0:00:04]} 51. Kc4 {[%emt 0:00:14]} Qg4 {[%emt 0:00:10]} 52. Kd5 {[%emt 0:00:05]} c4 {[%emt 0:00:03]} 53. Nd4 {[%emt 0:00:06]} Qxh4 {[%emt 0:00:08]} 54. Qxg6+ {[%emt 0:00:11]} Kg8 {[%emt 0:00:01]} 55. Ne6 {[%emt 0:00:00]} Qe7 {[%emt 0:00:05]} 56. Qh7+ {[%emt 0:00:00]} 1-0

[Event "Redbull chessmasters 2019"]
[Site "Istambul"]
[Date "2019.11.24"]
[Round "4.10"]
[White "Olcum, Ahmet"]
[Black "Cil, Batuhan"]
[Result "1-0"]
[ECO "C00"]
[WhiteElo "2303"]
[BlackElo "1737"]
[Annotator "NA"]
[PlyCount "77"]
[EventDate "2019.11.23"]
[EventType "k.o."]
[EventCountry "TUR"]
[SourceTitle "playchess.com"]
[Source "ChessBase"]
[SourceQuality "1"]
[TimeControl "600+5"]

1. e4 {[%emt 0:00:03]} c5 {[%emt 0:00:00]} 2. d3 {[%emt 0:00:05]} e6 {[%emt 0:00:05]} 3. g3 {[%emt 0:00:00]} d5 {[%emt 0:00:07]} 4. Nd2 {[%emt 0:00:00]} Nf6 {[%emt 0:00:05]} 5. Bg2 {[%emt 0:00:05]} Nc6 {[%emt 0:00:05]} 6. Ngf3 {[%emt 0:00:00]} Be7 {[%emt 0:00:04]} 7. O-O {[%emt 0:00:00]} O-O {[%emt 0:00:05]} 8. Re1 {[%emt 0:00:00]} b6 {[%emt 0:00:05]} 9. e5 {[%emt 0:00:00]} Nd7 {[%emt 0:00:11]} 10. h4 {[%emt 0:00:02]} Bb7 {[%emt 0:00:35]} 11. Nf1 {[%emt 0:00:03]} Qc7 {[%emt 0:00:23]} 12. Bf4 {[%emt 0:00:06]} Rac8 {[%emt 0:00:44]} 13. c3 {[%emt 0:00:19]} d4 {[%emt 0:00:29]} 14. c4 {[%emt 0:00:13]} a6 {[%emt 0:00:34]} 15. N1h2 {[%emt 0:00:07]} b5 {[%emt 0:00:16]} 16. b3 {[%emt 0:00:01]} h6 {[%emt 0:04:06]} 17. Ng4 {[%emt 0:00:23]} Kh7 {[%emt 0:00:07]} 18. h5 {[%emt 0:01:32]} Qd8 {[%emt 0:00:18]} 19. Qd2 {[%emt 0:00:10]} f5 {[%emt 0:00:31]} 20. exf6 {[%emt 0:00:27]} Nxf6 {[%emt 0:00:02]} 21. Nxf6+ {[%emt 0:00:12]} Rxf6 {[%emt 0:00:13]} 22. Ne5 {[%emt 0:00:12]} Na5 {[%emt 0:01:16]} 23. Bxb7 {[%emt 0:00:43]} Nxb7 {[%emt 0:00:02]} 24. Ng4 {[%emt 0:00:01]} Bd6 {[%emt 0:01:18]} 25. Nxf6+ {[%emt 0:00:33]} Qxf6 {[%emt 0:00:05]} 26. Bxd6 {[%emt 0:00:05]} Nxd6 {[%emt 0:00:00]} 27. Qf4 {[%emt 0:00:30]} Qe7 {[%emt 0:00:23]} 28. Qg4 {[%emt 0:00:38]} Re8 {[%emt 0:00:04]} 29. Re2 {[%emt 0:00:19]} Nf5 {[%emt 0:00:06]} 30. Rae1 {[%emt 0:00:10]} Qf7 {[%emt 0:00:04]} 31. Qg6+ {[%emt 0:00:09]} Qxg6 {[%emt 0:00:02]} 32. hxg6+ {[%emt 0:00:01]} Kxg6 {[%emt 0:00:01]} 33. Rxe6+ {[%emt 0:00:01]} Rxe6 {[%emt 0:00:10]} 34. Rxe6+ {[%emt 0:00:03]} Kg5 {[%emt 0:00:10]} 35. Rxa6 {[%emt 0:00:05]} bxc4 {[%emt 0:00:05]} 36. bxc4 {[%emt 0:00:04]} Kg4 {[%emt 0:00:03]} 37. Kg2 {[%emt 0:00:05]} Kg5 {[%emt 0:00:02]} 38. a4 {[%emt 0:00:09]} h5 {[%emt 0:00:06]} 39. f4+ {[%emt 0:00:07]} 1-0

[Event "Redbull chessmasters 2019"]
[Site "Istambul"]
[Date "2019.11.24"]
[Round "4.11"]
[White "Tofan, Ismail"]
[Black "Isik, Esref"]
[Result "1-0"]
[ECO "A06"]
[WhiteElo "1685"]
[BlackElo "1920"]
[Annotator "NA"]
[PlyCount "117"]
[EventDate "2019.11.23"]
[EventType "k.o."]
[EventCountry "TUR"]
[SourceTitle "playchess.com"]
[Source "ChessBase"]
[SourceQuality "1"]
[TimeControl "600+5"]

1. Nf3 {[%emt 0:00:00]} c5 {[%emt 0:00:00]} 2. b3 {[%emt 0:00:01]} Nf6 {[%emt 0:00:14]} 3. e3 {[%emt 0:00:04]} e6 {[%emt 0:00:07]} 4. Be2 {[%emt 0:00:05]} d5 {[%emt 0:00:05]} 5. O-O {[%emt 0:00:00]} Be7 {[%emt 0:00:05]} 6. Bb2 {[%emt 0:00:09]} O-O {[%emt 0:00:06]} 7. d4 {[%emt 0:00:03]} b6 {[%emt 0:00:12]} 8. Nbd2 {[%emt 0:00:03]} Bb7 {[%emt 0:00:14]} 9. Ne5 {[%emt 0:00:03]} Nc6 {[%emt 0:00:20]} 10. f4 {[%emt 0:00:03]} cxd4 {[%emt 0:00:17]} 11. exd4 {[%emt 0:00:19]} Rc8 {[%emt 0:00:14]} 12. a3 {[%emt 0:00:25]} Nd7 {[%emt 0:00:39]} 13. Bd3 {[%emt 0:01:59]} Ndxe5 {[%emt 0:01:03]} 14. fxe5 {[%emt 0:00:06]} f6 {[%emt 0:00:43]} 15. Qh5 {[%emt 0:00:44]} f5 {[%emt 0:00:15]} 16. Nf3 {[%emt 0:01:39]} Qe8 {[%emt 0:01:05]} 17. Qh3 {[%emt 0:00:25]} g6 {[%emt 0:00:29]} 18. Bc1 {[%emt 0:00:06]} Qd8 {[%emt 0:00:29]} 19. Qh6 {[%emt 0:00:20]} Rc7 {[%emt 0:01:04]} 20. c4 {[%emt 0:00:33]} Na5 {[%emt 0:00:15]} 21. cxd5 {[%emt 0:01:57]} Bxd5 {[%emt 0:00:21]} 22. Ng5 {[%emt 0:00:13]} Bxg5 {[%emt 0:00:47]} 23. Bxg5 {[%emt 0:00:02]} Qd7 {[%emt 0:00:41]} 24. Rac1 {[%emt 0:00:23]} Rfc8 {[%emt 0:00:25]} 25. Rxc7 {[%emt 0:00:40]} Rxc7 {[%emt 0:00:05]} 26. h4 {[%emt 0:00:05]} Rc3 {[%emt 0:00:05]} 27. Be2 {[%emt 0:00:32]} Bxb3 {[%emt 0:00:51]} 28. h5 {[%emt 0:00:05]} Qxd4+ {[%emt 0:00:21]} 29. Kh1 {[%emt 0:00:09]} Bd5 {[%emt 0:00:25]} 30. hxg6 {[%emt 0:00:02]} Bxg2+ {[%emt 0:00:21]} 31. Kxg2 {[%emt 0:00:05]} Qe4+ {[%emt 0:00:05]} 32. Bf3 {[%emt 0:00:05]} Rc2+ {[%emt 0:00:05]} 33. Kg3 {[%emt 0:00:05]} Qxe5+ {[%emt 0:00:05]} 34. Bf4 {[%emt 0:00:05]} Qg7 {[%emt 0:00:00]} 35. Qxh7+ {[%emt 0:00:23]} Qxh7 {[%emt 0:00:00]} 36. gxh7+ {[%emt 0:00:01]} Kxh7 {[%emt 0:00:00]} 37. Rh1+ {[%emt 0:00:04]} Kg7 {[%emt 0:00:00]} 38. Be5+ {[%emt 0:00:06]} Kg6 {[%emt 0:00:00]} 39. Bh5+ {[%emt 0:00:16]} Kg5 {[%emt 0:00:00]} 40. Bf7 {[%emt 0:00:03]} f4+ {[%emt 0:00:00]} 41. Bxf4+ {[%emt 0:00:05]} Kf6 {[%emt 0:00:00]} 42. Be8 {[%emt 0:00:31]} Rc3+ {[%emt 0:00:00]} 43. Kg4 {[%emt 0:00:02]} Rxa3 {[%emt 0:00:00]} 44. Bd6 {[%emt 0:00:07]} Rd3 {[%emt 0:00:00]} 45. Rh6+ {[%emt 0:00:07]} Kg7 {[%emt 0:00:00]} 46. Rg6+ {[%emt 0:00:12]} Kh7 {[%emt 0:00:00]} 47. Be5 {[%emt 0:00:07]} Nc4 {[%emt 0:00:06]} 48. Rg7+ {[%emt 0:00:13]} Kh6 {[%emt 0:00:06]} 49. Rg6+ {[%emt 0:00:04]} Kh7 {[%emt 0:00:00]} 50. Ba1 {[%emt 0:00:07]} Ne3+ {[%emt 0:00:10]} 51. Kf4 {[%emt 0:00:03]} Nd5+ {[%emt 0:00:01]} 52. Ke4 {[%emt 0:00:03]} Ra3 {[%emt 0:00:47]} 53. Rg1 {[%emt 0:00:07]} Nf6+ {[%emt 0:00:07]} 54. Bxf6 {[%emt 0:00:03]} Rh3 {[%emt 0:00:19]} 55. Ke5 {[%emt 0:00:04]} Re3+ {[%emt 0:00:00]} 56. Kd6 {[%emt 0:00:01]} Rh3 {[%emt 0:00:05]} 57. Ke7 {[%emt 0:00:02]} a5 {[%emt 0:00:14]} 58. Bg6+ {[%emt 0:00:03]} Kh6 {[%emt 0:00:02]} 59. Kf7 {[%emt 0:00:01]} 1-0

[Event "Redbull chessmasters 2019"]
[Site "Istambul"]
[Date "2019.11.24"]
[Round "4.12"]
[White "Gur, Tuba"]
[Black "Ozdemir, Cemre"]
[Result "1-0"]
[ECO "D04"]
[WhiteElo "1782"]
[BlackElo "1326"]
[Annotator "NA"]
[PlyCount "50"]
[EventDate "2019.11.23"]
[EventType "k.o."]
[EventCountry "TUR"]
[SourceTitle "playchess.com"]
[Source "ChessBase"]
[SourceQuality "1"]
[TimeControl "600+5"]

1. Nf3 {[%emt 0:00:00]} Nf6 {[%emt 0:00:00]} 2. e3 {[%emt 0:00:06]} d5 {[%emt 0:00:09]} 3. d4 {[%emt 0:00:05]} c6 {[%emt 0:00:05]} 4. Bd3 {[%emt 0:00:00]} Nbd7 {[%emt 0:00:07]} 5. b3 {[%emt 0:00:04]} e6 {[%emt 0:00:04]} 6. Bb2 {[%emt 0:00:02]} Bb4+ {[%emt 0:00:09]} 7. Nbd2 {[%emt 0:00:05]} O-O {[%emt 0:00:09]} 8. O-O {[%emt 0:00:00]} Re8 {[%emt 0:00:00]} 9. a3 {[%emt 0:00:06]} Bd6 {[%emt 0:00:14]} 10. Ne5 {[%emt 0:00:01]} Qc7 {[%emt 0:00:11]} 11. f4 {[%emt 0:00:01]} b6 {[%emt 0:01:14]} 12. Rf3 {[%emt 0:00:02]} Re7 {[%emt 0:00:54]} 13. Rh3 {[%emt 0:00:23]} g6 {[%emt 0:00:53]} 14. Qe1 {[%emt 0:00:41]} Ne8 {[%emt 0:01:30]} 15. Qh4 {[%emt 0:00:17]} f6 {[%emt 0:00:07]} 16. Nxg6 {[%emt 0:00:44]} Rg7 {[%emt 0:01:35]} 17. Qh6 {[%emt 0:02:33]} f5 {[%emt 0:02:18]} 18. Ne5 {[%emt 0:00:12]} Nxe5 {[%emt 0:00:49]} 19. fxe5 {[%emt 0:00:03]} Bf8 {[%emt 0:00:10]} 20. Qf4 {[%emt 0:00:25]} c5 {[%emt 0:00:24]} 21. Nf3 {[%emt 0:00:43]} c4 {[%emt 0:00:28]} 22. bxc4 {[%emt 0:00:17]} dxc4 {[%emt 0:00:05]} 23. Be2 {[%emt 0:00:06]} b5 {[%emt 0:00:13]} 24. c3 {[%emt 0:00:23]} Bb7 {[%emt 0:00:06]} 25. Rg3 {[%emt 0:00:56]} Qe7 {[%emt 0:00:11]} 1-0